[Event "*** Titled Tuesday Blitz"]
[Site "Chess.com"]
[Date "2020.01.07"]
[Round "2"]
[White "TheBigBoss04"]
[Black "Kosche007"]
[Result "1-0"]
[WhiteElo "2726"]
[BlackElo "2365"]
[TimeControl "180+2"]
[EndTime "13:27:57 PST"]
[Termination "TheBigBoss04 won by resignation"]

1. Nf3 {[%clk 0:03:01.9]} 1... Nf6 {[%clk 0:03:00.4]} 2. e3 {[%clk 0:03:03.5]}
2... g6 {[%clk 0:03:01.7]} 3. b3 {[%clk 0:03:03.2]} 3... Bg7 {[%clk 0:03:03]} 4.
Bb2 {[%clk 0:03:04.9]} 4... O-O {[%clk 0:03:04.4]} 5. Be2 {[%clk 0:03:06.3]}
5... d6 {[%clk 0:03:05.6]} 6. O-O {[%clk 0:03:07.2]} 6... e5 {[%clk 0:03:06.6]}
7. d4 {[%clk 0:03:08.3]} 7... e4 {[%clk 0:03:07.1]} 8. Nfd2 {[%clk 0:03:09.2]}
8... d5 {[%clk 0:03:08.4]} 9. c4 {[%clk 0:03:10.7]} 9... c6 {[%clk 0:03:09.6]}
10. Nc3 {[%clk 0:03:11.2]} 10... Be6 {[%clk 0:03:10.3]} 11. b4 {[%clk
0:03:11.1]} 11... Nbd7 {[%clk 0:03:03]} 12. a4 {[%clk 0:03:09.3]} 12... h5
{[%clk 0:03:01.8]} 13. b5 {[%clk 0:03:09.4]} 13... Bg4 {[%clk 0:02:59.3]} 14. h3
{[%clk 0:03:09]} 14... Bxe2 {[%clk 0:02:59.8]} 15. Qxe2 {[%clk 0:03:10.3]} 15...
Re8 {[%clk 0:02:52.7]} 16. Rfc1 {[%clk 0:03:09.9]} 16... Rc8 {[%clk 0:02:52.6]}
17. a5 {[%clk 0:03:10.7]} 17... a6 {[%clk 0:02:51.2]} 18. bxa6 {[%clk
0:03:10.6]} 18... bxa6 {[%clk 0:02:52.2]} 19. cxd5 {[%clk 0:03:12.2]} 19... cxd5
{[%clk 0:02:52.8]} 20. Qxa6 {[%clk 0:03:12.7]} 20... Ra8 {[%clk 0:02:52.4]} 21.
Qe2 {[%clk 0:03:00.9]} 21... Rxa5 {[%clk 0:02:52.4]} 22. Nb3 {[%clk 0:03:00.7]}
22... Rxa1 {[%clk 0:02:49.5]} 23. Rxa1 {[%clk 0:03:02.6]} 23... Qb6 {[%clk
0:02:50]} 24. Nc1 {[%clk 0:02:45.7]} 24... Rb8 {[%clk 0:02:47.6]} 25. Na4 {[%clk
0:02:44.6]} 25... Qb5 {[%clk 0:02:40.7]} 26. Qc2 {[%clk 0:02:39.8]} 26... Bf8
{[%clk 0:02:35.3]} 27. Ne2 {[%clk 0:02:29.4]} 27... Qd3 {[%clk 0:02:19.1]} 28.
Qxd3 {[%clk 0:02:00.8]} 28... exd3 {[%clk 0:02:19.9]} 29. Nf4 {[%clk 0:02:02.1]}
29... d2 {[%clk 0:02:09.8]} 30. Kf1 {[%clk 0:02:02.9]} 30... Nb6 {[%clk
0:02:00.4]} 31. Nxb6 {[%clk 0:01:59]} 31... Rxb6 {[%clk 0:02:01.6]} 32. Bc3
{[%clk 0:01:59.4]} 32... Ne4 {[%clk 0:01:59.5]} 33. Nxd5 {[%clk 0:01:24.6]}
33... Rc6 {[%clk 0:01:58.4]} 34. Bxd2 {[%clk 0:00:21.7]} 34... Nxd2+ {[%clk
0:01:58.4]} 35. Ke2 {[%clk 0:00:23.6]} 35... Ne4 {[%clk 0:01:54.4]} 36. Kf3
{[%clk 0:00:20.5]} 36... Nf6 {[%clk 0:01:46.9]} 37. Nf4 {[%clk 0:00:20.2]} 37...
Rc2 {[%clk 0:01:35.1]} 38. g4 {[%clk 0:00:17.4]} 38... hxg4+ {[%clk 0:01:32.2]}
39. hxg4 {[%clk 0:00:19.3]} 39... Bd6 {[%clk 0:01:12.4]} 40. Ra8+ {[%clk
0:00:17.1]} 40... Kg7 {[%clk 0:01:11.7]} 41. g5 {[%clk 0:00:17.1]} 41... Nh7
{[%clk 0:01:11]} 42. Nh3 {[%clk 0:00:14.2]} 42... Be7 {[%clk 0:01:11.8]} 43. Ra5
{[%clk 0:00:12.7]} 43... Rb2 {[%clk 0:00:57.6]} 44. Re5 {[%clk 0:00:10.5]} 44...
Kf8 {[%clk 0:00:51.5]} 45. Ra5 {[%clk 0:00:09.7]} 45... Rb1 {[%clk 0:00:51.9]}
46. Kg2 {[%clk 0:00:09.5]} 46... Kg7 {[%clk 0:00:46.5]} 47. Kg3 {[%clk
0:00:09.5]} 47... Rb3 {[%clk 0:00:38.2]} 48. Kf3 {[%clk 0:00:06.9]} 48... Rb7
{[%clk 0:00:31.6]} 49. Kg4 {[%clk 0:00:06.4]} 49... Nf8 {[%clk 0:00:30.1]} 50.
Nf4 {[%clk 0:00:06.4]} 50... Nh7 {[%clk 0:00:28.1]} 51. Nh3 {[%clk 0:00:06.7]}
51... Rb1 {[%clk 0:00:27.7]} 52. Kg3 {[%clk 0:00:06.8]} 52... Rb2 {[%clk
0:00:25.8]} 53. Kf3 {[%clk 0:00:07.6]} 53... Rb1 {[%clk 0:00:25.3]} 54. Re5
{[%clk 0:00:08.5]} 54... Bd6 {[%clk 0:00:23.5]} 55. Rd5 {[%clk 0:00:09.3]} 55...
Be7 {[%clk 0:00:24.6]} 56. Kg2 {[%clk 0:00:07.7]} 56... Rb2 {[%clk 0:00:24.4]}
57. Kg3 {[%clk 0:00:08]} 57... Rb7 {[%clk 0:00:24.8]} 58. f4 {[%clk 0:00:07.6]}
58... f6 {[%clk 0:00:21.2]} 59. gxf6+ {[%clk 0:00:04.2]} 59... Nxf6 {[%clk
0:00:23.1]} 60. Ra5 {[%clk 0:00:05.4]} 60... Rb3 {[%clk 0:00:23.7]} 61. Kf3
{[%clk 0:00:05.9]} 61... Bb4 {[%clk 0:00:20]} 62. Rb5 {[%clk 0:00:05.6]} 62...
Rb2 {[%clk 0:00:20.9]} 63. Ng5 {[%clk 0:00:06.3]} 63... Bc3 {[%clk 0:00:21.6]}
64. Rc5 {[%clk 0:00:06.1]} 64... Bd2 {[%clk 0:00:19.8]} 65. Rc7+ {[%clk
0:00:06.9]} 65... Kf8 {[%clk 0:00:20.6]} 66. Rf7+ {[%clk 0:00:06.8]} 66... Ke8
{[%clk 0:00:19.2]} 67. Rxf6 {[%clk 0:00:08.7]} 67... Rb3 {[%clk 0:00:20.2]} 68.
Re6+ {[%clk 0:00:09.3]} 68... Kd7 {[%clk 0:00:21.4]} 69. Re5 {[%clk 0:00:10.7]}
69... Kd6 {[%clk 0:00:22.5]} 70. Ne4+ {[%clk 0:00:11.6]} 70... Kd7 {[%clk
0:00:23]} 71. Nxd2 {[%clk 0:00:13.5]} 1-0

[Event "*** Titled Tuesday Blitz"]
[Site "Chess.com"]
[Date "2020.01.07"]
[Round "2"]
[White "MiroMiljkovic"]
[Black "temus_galaktionov"]
[Result "1/2-1/2"]
[WhiteElo "2547"]
[BlackElo "2750"]
[TimeControl "180+2"]
[EndTime "13:28:00 PST"]
[Termination "Game drawn - insufficient material"]

1. d4 {[%clk 0:03:01.9]} 1... c6 {[%clk 0:02:58.4]} 2. c4 {[%clk 0:03:03.2]}
2... g6 {[%clk 0:02:59.3]} 3. Nf3 {[%clk 0:03:03.8]} 3... Bg7 {[%clk 0:02:59.4]}
4. Nc3 {[%clk 0:03:04.5]} 4... d6 {[%clk 0:03:00.4]} 5. e4 {[%clk 0:03:04.3]}
5... Nd7 {[%clk 0:03:01.6]} 6. Be2 {[%clk 0:03:05.2]} 6... e5 {[%clk 0:03:02.5]}
7. O-O {[%clk 0:03:06.2]} 7... Ngf6 {[%clk 0:03:03.2]} 8. h3 {[%clk 0:03:05.1]}
8... O-O {[%clk 0:03:03.2]} 9. Be3 {[%clk 0:03:03.8]} 9... Qe7 {[%clk
0:03:04.3]} 10. d5 {[%clk 0:03:04.5]} 10... c5 {[%clk 0:03:05.3]} 11. Ne1 {[%clk
0:03:02.2]} 11... Ne8 {[%clk 0:03:05.9]} 12. Nd3 {[%clk 0:03:02.4]} 12... f5
{[%clk 0:03:06.9]} 13. f3 {[%clk 0:03:00.2]} 13... f4 {[%clk 0:03:07.4]} 14. Bf2
{[%clk 0:03:00.9]} 14... g5 {[%clk 0:03:08.7]} 15. b4 {[%clk 0:03:00.6]} 15...
b6 {[%clk 0:03:09]} 16. bxc5 {[%clk 0:03:00.4]} 16... bxc5 {[%clk 0:03:10.9]}
17. Be1 {[%clk 0:02:53.3]} 17... h5 {[%clk 0:03:10.8]} 18. Nf2 {[%clk
0:02:54.6]} 18... Ndf6 {[%clk 0:03:10.6]} 19. Rb1 {[%clk 0:02:52.1]} 19... Qf7
{[%clk 0:03:11.5]} 20. Rb3 {[%clk 0:02:49.5]} 20... Qg6 {[%clk 0:03:08.3]} 21.
Qd3 {[%clk 0:02:28.6]} 21... a6 {[%clk 0:03:03.3]} 22. Na4 {[%clk 0:02:27.6]}
22... Ra7 {[%clk 0:02:52.8]} 23. Nb6 {[%clk 0:02:27.1]} 23... Bd7 {[%clk
0:02:52.4]} 24. Nxd7 {[%clk 0:02:27.7]} 24... Rxd7 {[%clk 0:02:54.3]} 25. Rb6
{[%clk 0:02:23.4]} 25... Nc7 {[%clk 0:02:48.6]} 26. Ba5 {[%clk 0:02:03.7]} 26...
Bh6 {[%clk 0:02:41.7]} 27. Rfb1 {[%clk 0:02:03.9]} 27... Nce8 {[%clk 0:02:32.6]}
28. Rb7 {[%clk 0:02:03.2]} 28... Rff7 {[%clk 0:02:31.3]} 29. Rxd7 {[%clk
0:02:03.6]} 29... Rxd7 {[%clk 0:02:33.2]} 30. Rb8 {[%clk 0:02:04.9]} 30... Kh7
{[%clk 0:02:33.4]} 31. Rb6 {[%clk 0:01:57.9]} 31... g4 {[%clk 0:02:33.8]} 32.
fxg4 {[%clk 0:01:57.1]} 32... Rg7 {[%clk 0:02:28.5]} 33. Rb8 {[%clk 0:01:49.5]}
33... hxg4 {[%clk 0:02:19.8]} 34. Bxg4 {[%clk 0:01:44.4]} 34... Nxg4 {[%clk
0:02:18.6]} 35. Nxg4 {[%clk 0:01:46.3]} 35... Nf6 {[%clk 0:02:19.8]} 36. Nxf6+
{[%clk 0:01:25.9]} 36... Qxf6 {[%clk 0:02:20.9]} 37. Qf3 {[%clk 0:01:23.4]}
37... Qh4 {[%clk 0:02:17.2]} 38. Rb1 {[%clk 0:01:05.9]} 38... Rg3 {[%clk
0:02:15.1]} 39. Be1 {[%clk 0:01:02.5]} 39... Rxf3 {[%clk 0:02:13.8]} 40. Bxh4
{[%clk 0:01:04]} 40... Re3 {[%clk 0:02:04.9]} 41. Be7 {[%clk 0:00:57.6]} 41...
Rxe4 {[%clk 0:02:06]} 42. Bxd6 {[%clk 0:00:58.8]} 42... Rxc4 {[%clk 0:02:07.1]}
43. Bxe5 {[%clk 0:00:59.2]} 43... Re4 {[%clk 0:02:08.1]} 44. Bc3 {[%clk
0:00:46.2]} 44... Re3 {[%clk 0:02:05.5]} 45. Rb7+ {[%clk 0:00:36.4]} 45... Kg6
{[%clk 0:02:05.8]} 46. Rb6+ {[%clk 0:00:37.1]} 46... Kh5 {[%clk 0:02:06.4]} 47.
Bf6 {[%clk 0:00:36]} 47... Rd3 {[%clk 0:02:06.3]} 48. d6 {[%clk 0:00:34.2]}
48... a5 {[%clk 0:01:37.1]} 49. Rc6 {[%clk 0:00:31.4]} 49... c4 {[%clk
0:01:31.9]} 50. Be5 {[%clk 0:00:28.3]} 50... Rd5 {[%clk 0:01:30.9]} 51. Bc3
{[%clk 0:00:20.7]} 51... Bg5 {[%clk 0:01:25.6]} 52. Rxc4 {[%clk 0:00:20.5]}
52... Rxd6 {[%clk 0:01:25.9]} 53. Bxa5 {[%clk 0:00:20.7]} 53... Rd1+ {[%clk
0:01:22.9]} 54. Kf2 {[%clk 0:00:21.7]} 54... Ra1 {[%clk 0:01:17.7]} 55. Rc2
{[%clk 0:00:22.5]} 55... Kg6 {[%clk 0:01:16]} 56. Bc3 {[%clk 0:00:21.5]} 56...
Rb1 {[%clk 0:01:14.2]} 57. a4 {[%clk 0:00:21]} 57... Rb3 {[%clk 0:01:14.3]} 58.
a5 {[%clk 0:00:21.9]} 58... Kf5 {[%clk 0:01:13.9]} 59. Bd2 {[%clk 0:00:21.5]}
59... Bf6 {[%clk 0:01:06.1]} 60. Ra2 {[%clk 0:00:21]} 60... Bd4+ {[%clk
0:01:05.2]} 61. Ke2 {[%clk 0:00:21.9]} 61... Rg3 {[%clk 0:00:58.7]} 62. Kf1
{[%clk 0:00:21.3]} 62... f3 {[%clk 0:00:59.7]} 63. gxf3 {[%clk 0:00:18.5]} 63...
Rxf3+ {[%clk 0:01:01.6]} 64. Ke2 {[%clk 0:00:18.4]} 64... Rxh3 {[%clk
0:01:01.4]} 65. a6 {[%clk 0:00:20]} 65... Ba7 {[%clk 0:01:01.2]} 66. Rb2 {[%clk
0:00:17]} 66... Ra3 {[%clk 0:00:57.8]} 67. Rb5+ {[%clk 0:00:16.9]} 67... Ke4
{[%clk 0:00:58.2]} 68. Rb4+ {[%clk 0:00:14.8]} 68... Kd5 {[%clk 0:00:58.5]} 69.
Rb5+ {[%clk 0:00:14.3]} 69... Kc6 {[%clk 0:00:58.6]} 70. Ra5 {[%clk 0:00:12.8]}
70... Rxa5 {[%clk 0:00:58.9]} 71. Bxa5 {[%clk 0:00:14.7]} 71... Kb5 {[%clk
0:01:00.8]} 72. Bd2 {[%clk 0:00:16.2]} 72... Kxa6 {[%clk 0:01:02.7]} 1/2-1/2

[Event "*** Titled Tuesday Blitz"]
[Site "Chess.com"]
[Date "2020.01.07"]
[Round "2"]
[White "MatthewG-p4p"]
[Black "Sashadav97"]
[Result "0-1"]
[WhiteElo "2852"]
[BlackElo "2585"]
[TimeControl "180+2"]
[EndTime "13:28:02 PST"]
[Termination "Sashadav97 won by checkmate"]

1. Nf3 {[%clk 0:03:00.8]} 1... d5 {[%clk 0:02:59.9]} 2. c4 {[%clk 0:03:00.1]}
2... d4 {[%clk 0:03:00.2]} 3. e3 {[%clk 0:03:00.3]} 3... Nc6 {[%clk 0:03:01.5]}
4. exd4 {[%clk 0:02:55]} 4... Nxd4 {[%clk 0:03:03.4]} 5. Nxd4 {[%clk 0:02:55.6]}
5... Qxd4 {[%clk 0:03:05.3]} 6. Nc3 {[%clk 0:02:54.5]} 6... c6 {[%clk
0:03:05.7]} 7. d3 {[%clk 0:02:53.1]} 7... Nh6 {[%clk 0:03:01.5]} 8. Be3 {[%clk
0:02:53.9]} 8... Qd8 {[%clk 0:03:02.3]} 9. Be2 {[%clk 0:02:55.3]} 9... g6 {[%clk
0:03:01.6]} 10. Qd2 {[%clk 0:02:48.4]} 10... Nf5 {[%clk 0:03:01.2]} 11. d4
{[%clk 0:02:47.4]} 11... Bg7 {[%clk 0:03:00.9]} 12. Rd1 {[%clk 0:02:47.7]} 12...
O-O {[%clk 0:02:44.6]} 13. O-O {[%clk 0:02:48.1]} 13... Nxe3 {[%clk 0:02:45.7]}
14. fxe3 {[%clk 0:02:46.8]} 14... e6 {[%clk 0:02:27.7]} 15. Kh1 {[%clk
0:02:33.9]} 15... b6 {[%clk 0:02:28.7]} 16. Bf3 {[%clk 0:02:34.2]} 16... Bb7
{[%clk 0:02:29.4]} 17. e4 {[%clk 0:02:34.8]} 17... c5 {[%clk 0:02:21.9]} 18. d5
{[%clk 0:02:34.3]} 18... a6 {[%clk 0:02:01.9]} 19. Qf4 {[%clk 0:02:23]} 19... e5
{[%clk 0:02:00.2]} 20. Qe3 {[%clk 0:02:20.6]} 20... Qd6 {[%clk 0:02:01.1]} 21.
a3 {[%clk 0:02:17.8]} 21... f5 {[%clk 0:01:54.3]} 22. Rb1 {[%clk 0:02:17.5]}
22... f4 {[%clk 0:01:53]} 23. Qe2 {[%clk 0:02:17.6]} 23... h5 {[%clk 0:01:28.7]}
24. b4 {[%clk 0:02:17.4]} 24... cxb4 {[%clk 0:01:23.6]} 25. Rxb4 {[%clk
0:02:16.1]} 25... Rf6 {[%clk 0:01:20.2]} 26. Na4 {[%clk 0:02:12.7]} 26... b5
{[%clk 0:01:15.5]} 27. cxb5 {[%clk 0:01:50.6]} 27... axb5 {[%clk 0:01:17.4]} 28.
Qxb5 {[%clk 0:01:51.1]} 28... Ba6 {[%clk 0:01:13]} 29. Qa5 {[%clk 0:01:52.1]}
29... Bf8 {[%clk 0:00:54.4]} 30. Rb6 {[%clk 0:01:47.2]} 30... Qd8 {[%clk
0:00:27.1]} 31. Rxa6 {[%clk 0:00:57.4]} 31... Qxa5 {[%clk 0:00:25.2]} 32. Rxa5
{[%clk 0:00:59.3]} 32... Rxa5 {[%clk 0:00:27.1]} 33. Nc3 {[%clk 0:00:58.9]}
33... Bxa3 {[%clk 0:00:22.7]} 34. Nd1 {[%clk 0:00:57.5]} 34... Bc5 {[%clk
0:00:21.3]} 35. Nb2 {[%clk 0:00:58]} 35... Bd4 {[%clk 0:00:20.2]} 36. Nc4 {[%clk
0:00:58.3]} 36... Ra1 {[%clk 0:00:21.7]} 37. Rxa1 {[%clk 0:00:57.7]} 37... Bxa1
{[%clk 0:00:23.6]} 38. Kg1 {[%clk 0:00:58.6]} 38... Bd4+ {[%clk 0:00:25.1]} 39.
Kf1 {[%clk 0:00:59.6]} 39... Ra6 {[%clk 0:00:26.7]} 40. Ke2 {[%clk 0:00:59.6]}
40... Ra2+ {[%clk 0:00:27.2]} 41. Kd3 {[%clk 0:01:00.7]} 41... Kg7 {[%clk
0:00:28.8]} 42. h3 {[%clk 0:00:48.4]} 42... Kf6 {[%clk 0:00:29.1]} 43. Nd6
{[%clk 0:00:48.6]} 43... Ra3+ {[%clk 0:00:27.4]} 44. Kc4 {[%clk 0:00:49.5]}
44... Rc3+ {[%clk 0:00:28.5]} 45. Kb4 {[%clk 0:00:50.8]} 45... Rc1 {[%clk
0:00:27.4]} 46. Nb5 {[%clk 0:00:46.6]} 46... Bc5+ {[%clk 0:00:25.9]} 47. Kb3
{[%clk 0:00:47.5]} 47... Ke7 {[%clk 0:00:26.6]} 48. Nc3 {[%clk 0:00:40.9]} 48...
Kd6 {[%clk 0:00:24.4]} 49. Nb5+ {[%clk 0:00:41.5]} 49... Kd7 {[%clk 0:00:25.8]}
50. Nc3 {[%clk 0:00:43.4]} 50... Kc7 {[%clk 0:00:26.3]} 51. Ne2 {[%clk
0:00:42.3]} 51... Re1 {[%clk 0:00:24.1]} 52. Kc4 {[%clk 0:00:43.4]} 52... Be3
{[%clk 0:00:24.5]} 53. Nc3 {[%clk 0:00:43.1]} 53... Kb6 {[%clk 0:00:24.7]} 54.
Kd3 {[%clk 0:00:42.5]} 54... Bd4 {[%clk 0:00:23.3]} 55. Ne2 {[%clk 0:00:39.2]}
55... Kc5 {[%clk 0:00:24.1]} 56. Kd2 {[%clk 0:00:32.5]} 56... Ra1 {[%clk
0:00:24.8]} 57. Kd3 {[%clk 0:00:31.8]} 57... Ra3+ {[%clk 0:00:25.7]} 58. Kc2
{[%clk 0:00:32.7]} 58... Kc4 {[%clk 0:00:25.6]} 59. Nc1 {[%clk 0:00:33.1]} 59...
Rc3+ {[%clk 0:00:26.5]} 60. Kd1 {[%clk 0:00:33.8]} 60... Be3 {[%clk 0:00:26.5]}
61. Na2 {[%clk 0:00:31.2]} 61... Ra3 {[%clk 0:00:26]} 62. Be2+ {[%clk
0:00:29.5]} 62... Kd4 {[%clk 0:00:27]} 63. Nb4 {[%clk 0:00:31]} 63... Rb3 {[%clk
0:00:19.5]} 64. Nc2+ {[%clk 0:00:27.5]} 64... Kc3 {[%clk 0:00:19.8]} 65. Nxe3
{[%clk 0:00:20.6]} 65... Rb1# {[%clk 0:00:20.3]} 0-1

[Event "*** Titled Tuesday Blitz"]
[Site "Chess.com"]
[Date "2020.01.07"]
[Round "2"]
[White "vova-79"]
[Black "Sjakkerntobi"]
[Result "1/2-1/2"]
[WhiteElo "2540"]
[BlackElo "2285"]
[TimeControl "180+2"]
[EndTime "13:28:19 PST"]
[Termination "Game drawn by repetition"]

1. d4 {[%clk 0:03:01.9]} 1... Nf6 {[%clk 0:03:00]} 2. c4 {[%clk 0:03:02]} 2...
e6 {[%clk 0:03:01.3]} 3. Nc3 {[%clk 0:03:02.2]} 3... Bb4 {[%clk 0:03:02.8]} 4.
e3 {[%clk 0:03:02]} 4... O-O {[%clk 0:03:02.3]} 5. Ne2 {[%clk 0:03:02.7]} 5...
d5 {[%clk 0:03:03.3]} 6. a3 {[%clk 0:03:03.5]} 6... Be7 {[%clk 0:03:02.7]} 7.
cxd5 {[%clk 0:03:04.2]} 7... exd5 {[%clk 0:03:04.6]} 8. Nf4 {[%clk 0:03:05.1]}
8... c6 {[%clk 0:03:03.9]} 9. Bd3 {[%clk 0:03:06]} 9... Re8 {[%clk 0:03:00.9]}
10. O-O {[%clk 0:03:07]} 10... Nbd7 {[%clk 0:02:58.3]} 11. f3 {[%clk 0:03:07]}
11... Nf8 {[%clk 0:02:58]} 12. Kh1 {[%clk 0:03:02.3]} 12... Ng6 {[%clk 0:02:54]}
13. Nfe2 {[%clk 0:03:02.2]} 13... Bd6 {[%clk 0:02:50.2]} 14. b4 {[%clk
0:02:59.3]} 14... Nh5 {[%clk 0:02:44.5]} 15. Qe1 {[%clk 0:02:58.2]} 15... Qf6
{[%clk 0:02:40.9]} 16. b5 {[%clk 0:02:50.6]} 16... Qe7 {[%clk 0:02:24.2]} 17.
Qf2 {[%clk 0:02:42.4]} 17... Be6 {[%clk 0:02:18.2]} 18. bxc6 {[%clk 0:02:36.2]}
18... bxc6 {[%clk 0:02:20.1]} 19. e4 {[%clk 0:02:36.7]} 19... Bf4 {[%clk
0:02:11.1]} 20. Nxf4 {[%clk 0:02:24.1]} 20... Nhxf4 {[%clk 0:02:13]} 21. Ba6
{[%clk 0:02:24]} 21... Rab8 {[%clk 0:01:55]} 22. Na4 {[%clk 0:02:08.4]} 22...
dxe4 {[%clk 0:01:33.6]} 23. fxe4 {[%clk 0:02:07.9]} 23... Nh5 {[%clk 0:01:29.7]}
24. Nc5 {[%clk 0:01:57.2]} 24... Nf6 {[%clk 0:01:26.1]} 25. Bg5 {[%clk
0:01:55.4]} 25... Ng4 {[%clk 0:01:20.6]} 26. Qd2 {[%clk 0:01:49.7]} 26... Qd6
{[%clk 0:01:11.5]} 27. e5 {[%clk 0:01:42.8]} 27... N4xe5 {[%clk 0:01:10.7]} 28.
Ne4 {[%clk 0:01:39.7]} 28... Qd5 {[%clk 0:01:02.9]} 29. dxe5 {[%clk 0:01:32.6]}
29... Qxe4 {[%clk 0:01:02.5]} 30. Rfe1 {[%clk 0:01:25.7]} 30... Qd5 {[%clk
0:01:02.5]} 31. Qe2 {[%clk 0:01:21.4]} 31... Rb6 {[%clk 0:00:58.4]} 32. Bd3
{[%clk 0:01:19.6]} 32... Reb8 {[%clk 0:00:58.2]} 33. Be4 {[%clk 0:00:55.8]}
33... Qxe5 {[%clk 0:00:58.1]} 34. Bxg6 {[%clk 0:00:55.4]} 34... Qxe2 {[%clk
0:00:53.6]} 35. Bxh7+ {[%clk 0:00:54]} 35... Kxh7 {[%clk 0:00:55.5]} 36. Rxe2
{[%clk 0:00:55.7]} 36... Rb1+ {[%clk 0:00:56.6]} 37. Re1 {[%clk 0:00:56]} 37...
R1b2 {[%clk 0:00:58]} 38. Bf4 {[%clk 0:00:50.7]} 38... R8b3 {[%clk 0:00:57]} 39.
Be5 {[%clk 0:00:49.7]} 39... Rc2 {[%clk 0:00:54.8]} 40. Rec1 {[%clk 0:00:46]}
40... Re2 {[%clk 0:00:52.6]} 41. Re1 {[%clk 0:00:45]} 41... Rxe1+ {[%clk
0:00:49.1]} 42. Rxe1 {[%clk 0:00:44.5]} 42... Rxa3 {[%clk 0:00:50.4]} 43. Ra1
{[%clk 0:00:41.9]} 43... Rxa1+ {[%clk 0:00:50.7]} 44. Bxa1 {[%clk 0:00:41.8]}
44... Kg6 {[%clk 0:00:52.6]} 45. Kg1 {[%clk 0:00:42]} 45... f6 {[%clk
0:00:53.4]} 46. Kf2 {[%clk 0:00:43.9]} 46... Kf5 {[%clk 0:00:55]} 47. Ke3 {[%clk
0:00:43.7]} 47... Bd5 {[%clk 0:00:56.5]} 48. g3 {[%clk 0:00:42.2]} 48... Kg4
{[%clk 0:00:57.4]} 49. Kf2 {[%clk 0:00:41]} 49... Kh3 {[%clk 0:00:57]} 50. Kg1
{[%clk 0:00:40.8]} 50... a5 {[%clk 0:00:58.1]} 51. Bc3 {[%clk 0:00:39.1]} 51...
a4 {[%clk 0:00:59.2]} 52. Bb4 {[%clk 0:00:39.6]} 52... Kg4 {[%clk 0:00:59.7]}
53. Kf2 {[%clk 0:00:35.9]} 53... f5 {[%clk 0:01:01.1]} 54. Bf8 {[%clk
0:00:29.8]} 54... g6 {[%clk 0:01:01.6]} 55. Be7 {[%clk 0:00:28.7]} 55... Kh3
{[%clk 0:00:58.5]} 56. Kg1 {[%clk 0:00:27.4]} 56... Be4 {[%clk 0:00:56.6]} 57.
Bc5 {[%clk 0:00:25.6]} 57... g5 {[%clk 0:00:56.9]} 58. Be7 {[%clk 0:00:23.3]}
58... f4 {[%clk 0:00:58.1]} 59. Bxg5 {[%clk 0:00:21.4]} 59... fxg3 {[%clk
0:00:59.8]} 60. hxg3 {[%clk 0:00:21.5]} 60... Kxg3 {[%clk 0:01:01.7]} 61. Kf1
{[%clk 0:00:21.4]} 61... Kf3 {[%clk 0:01:03.2]} 62. Ke1 {[%clk 0:00:21.3]} 62...
c5 {[%clk 0:01:02.2]} 63. Kd2 {[%clk 0:00:20.8]} 63... Bd5 {[%clk 0:01:02.7]}
64. Kc3 {[%clk 0:00:19.8]} 64... Ke4 {[%clk 0:01:03.5]} 65. Be7 {[%clk
0:00:18.8]} 65... c4 {[%clk 0:01:04.8]} 66. Bf6 {[%clk 0:00:17.4]} 66... Kf5
{[%clk 0:01:03.2]} 67. Bh8 {[%clk 0:00:16.2]} 67... Ke6 {[%clk 0:01:04.5]} 68.
Kb2 {[%clk 0:00:15.3]} 68... Kd6 {[%clk 0:01:05.3]} 69. Ka1 {[%clk 0:00:14.5]}
69... Kc6 {[%clk 0:01:06.4]} 70. Kb2 {[%clk 0:00:14.2]} 70... Kb5 {[%clk
0:01:08.3]} 71. Bc3 {[%clk 0:00:14.5]} 71... Be4 {[%clk 0:01:08.6]} 72. Ka3
{[%clk 0:00:15]} 72... Bc2 {[%clk 0:01:09.3]} 73. Kb2 {[%clk 0:00:15.7]} 73...
Bb3 {[%clk 0:01:11.2]} 74. Ka3 {[%clk 0:00:16.6]} 74... Kc5 {[%clk 0:01:09.5]}
75. Kb2 {[%clk 0:00:17.7]} 75... Kd5 {[%clk 0:01:11.4]} 76. Bh8 {[%clk
0:00:16.5]} 76... Ke4 {[%clk 0:01:13.3]} 77. Bg7 {[%clk 0:00:15.9]} 77... Kd3
{[%clk 0:01:12.9]} 78. Bh8 {[%clk 0:00:17.2]} 78... Bd1 {[%clk 0:01:13.4]} 79.
Bg7 {[%clk 0:00:17.8]} 79... Bb3 {[%clk 0:01:15.3]} 80. Bh8 {[%clk 0:00:18.1]}
80... Ke4 {[%clk 0:01:16.8]} 81. Bg7 {[%clk 0:00:19.5]} 81... Kd3 {[%clk
0:01:15.6]} 1/2-1/2